fUST/lending_fUST_20251205
["ID","MTS","AMOUNT","RATE_DAILY","PERIOD"]
[396255205,1764891039108,-500.0,0.00013273,2]
[396255206,1764891039118,-500.0,0.00013273,2]
[396255207,1764891039127,-151.0,0.00013273,2]
[396255208,1764891039137,-299.98037072,0.000133,2]
[396255209,1764891039146,-483.54,0.00013363,7]
[396255210,1764891039156,-151.0,0.00013399,2]
[396255211,1764891039165,-199.72167099,0.00013399,2]
[396255212,1764891039175,-155.40730965,0.00013399,2]
[396255213,1764891039184,-313.12566891,0.000134,2]
[396255214,1764891039194,-126625.04058844,0.000134,2]
[396255215,1764891039206,-889.78,0.000134,2]
[396255216,1764891040968,-3e-08,0.000134,2]
[396255379,1764891046755,-4698.70368359,0.000134,2]
[396255380,1764891046939,-532.71886932,0.000134,2]
[396255432,1764891062772,152.49,1e-05,2]
[396255433,1764891066722,152.49,2.5e-05,2]
[396255434,1764891066997,152.49,3.9e-05,2]
[396255435,1764891067302,152.49,5.4e-05,2]
[396255436,1764891067602,152.49,6.8e-05,2]
[396255437,1764891067953,152.49,8.3e-05,2]
[396255438,1764891069138,152.47,1e-05,2]
[396255443,1764891111934,6797.78,0.0001267,2]
[396255444,1764891111972,806506.2759736,0.0001267,2]
[396255445,1764891122207,157.3,1e-05,2]
[396255446,1764891122542,157.3,1.2e-05,2]
[396255447,1764891122812,157.3,1.4e-05,2]
[396255448,1764891123150,157.3,1.5e-05,2]
[396255449,1764891123503,157.3,1.7e-05,2]
[396255450,1764891123856,157.3,1.9e-05,2]
[396255451,1764891124249,157.3,2.1e-05,2]
[396255452,1764891124543,157.3,2.3e-05,2]
[396255453,1764891124867,157.3,2.4e-05,2]
[396255454,1764891125162,157.3,2.6e-05,2]
[396255455,1764891125507,157.3,2.8e-05,2]
[396255456,1764891125562,-300.0,0.00012669,2]
[396255457,1764891125870,157.3,3e-05,2]
[396255458,1764891125902,-8001.0696104,0.0001267,2]
[396255459,1764891126086,157.3,3.1e-05,2]
[396255460,1764891126370,157.3,3.3e-05,2]
[396255461,1764891126671,157.3,3.5e-05,2]
[396255462,1764891127001,157.3,3.7e-05,2]
[396255463,1764891127285,157.3,3.9e-05,2]
[396255464,1764891127674,157.3,4e-05,2]
[396255465,1764891127953,157.3,4.2e-05,2]
[396255466,1764891128358,157.3,4.4e-05,2]
[396255467,1764891128645,157.3,4.6e-05,2]
[396255468,1764891128963,157.3,4.8e-05,2]
[396255469,1764891129275,157.3,4.9e-05,2]
[396255470,1764891129567,157.3,5.1e-05,2]
[396255471,1764891129935,157.3,5.3e-05,2]
[396255472,1764891130708,157.3,5.5e-05,2]
[396255473,1764891131235,157.3,5.6e-05,2]
[396255474,1764891131945,157.3,5.8e-05,2]
[396255475,1764891132002,157.3,6e-05,2]
[396255476,1764891132265,157.3,6.2e-05,2]
[396255477,1764891132550,157.3,6.4e-05,2]
[396255478,1764891132832,123.7,6.5e-05,2]
[396255479,1764891132863,33.6,6.5e-05,2]
[396255480,1764891133275,157.3,6.7e-05,2]
[396255481,1764891133558,157.3,6.9e-05,2]
[396255482,1764891133839,157.3,7.1e-05,2]
[396255483,1764891134214,157.3,7.3e-05,2]
[396255484,1764891134581,157.3,7.4e-05,2]
[396255485,1764891134887,157.3,7.6e-05,2]
[396255486,1764891135158,157.3,7.8e-05,2]
[396255487,1764891135558,157.3,8e-05,2]
[396255488,1764891135869,157.3,8.1e-05,2]
[396255489,1764891136359,157.3,8.3e-05,2]
[396255490,1764891136674,157.3,8.5e-05,2]
[396255491,1764891137041,157.3,8.7e-05,2]
[396255492,1764891137346,157.3,8.9e-05,2]
[396255493,1764891137651,157.3,9e-05,2]
[396255494,1764891137930,157.3,9.2e-05,2]
[396255495,1764891138269,157.3,9.4e-05,2]
[396255496,1764891138573,157.3,9.6e-05,2]
[396255497,1764891138853,157.3,9.8e-05,2]
[396255498,1764891182350,170.79,1e-05,2]
[396255499,1764891183270,170.79,1.2e-05,2]
[396255500,1764891183611,170.79,1.4e-05,2]
[396255501,1764891183980,170.79,1.5e-05,2]
[396255502,1764891184283,170.79,1.7e-05,2]
[396255503,1764891184577,170.79,1.9e-05,2]
[396255504,1764891185000,170.79,2.1e-05,2]
[396255505,1764891185386,170.79,2.3e-05,2]
[396255506,1764891185689,170.79,2.4e-05,2]
[396255507,1764891185990,170.79,2.6e-05,2]
[396255508,1764891186306,170.79,2.8e-05,2]
[396255509,1764891186948,170.79,3e-05,2]
[396255510,1764891187975,85.52,3.1e-05,2]
[396255511,1764891188004,85.27,3.1e-05,2]
[396255512,1764891188375,170.79,3.3e-05,2]
[396255513,1764891188688,170.79,3.5e-05,2]
[396255514,1764891189063,170.79,3.7e-05,2]
[396255515,1764891189356,170.79,3.9e-05,2]
[396255516,1764891189630,170.79,4e-05,2]
[396255517,1764891189919,170.79,4.2e-05,2]
[396255518,1764891191014,170.79,4.4e-05,2]
[396255519,1764891191058,170.79,4.6e-05,2]
[396255520,1764891191114,170.79,4.8e-05,2]
[396255521,1764891191217,170.79,4.9e-05,2]
[396255522,1764891191518,170.79,5.1e-05,2]
[396255523,1764891191801,170.79,5.3e-05,2]
[396255524,1764891192166,170.79,5.5e-05,2]
[396255525,1764891192464,170.79,5.6e-05,2]
[396255526,1764891192743,170.79,5.8e-05,2]
[396255527,1764891193022,170.79,6e-05,2]
[396255528,1764891193304,170.79,6.2e-05,2]
[396255529,1764891193582,170.79,6.4e-05,2]
[396255530,1764891193850,170.79,6.5e-05,2]
[396255531,1764891194178,170.79,6.7e-05,2]
[396255532,1764891194493,170.79,6.9e-05,2]
[396255533,1764891194767,170.79,7.1e-05,2]
[396255534,1764891195104,170.79,7.3e-05,2]
[396255535,1764891195385,170.79,7.4e-05,2]
[396255536,1764891195726,170.79,7.6e-05,2]
[396255537,1764891196030,170.79,7.8e-05,2]
[396255538,1764891196303,170.79,8e-05,2]
[396255539,1764891196656,170.79,8.1e-05,2]
[396255540,1764891196935,170.79,8.3e-05,2]
[396255541,1764891197212,170.79,8.5e-05,2]
[396255542,1764891197492,170.79,8.7e-05,2]
[396255543,1764891197782,170.79,8.9e-05,2]
[396255544,1764891198103,170.79,9e-05,2]
[396255545,1764891199145,170.79,9.2e-05,2]
[396255546,1764891199644,170.79,9.4e-05,2]
[396255547,1764891199983,170.79,9.6e-05,2]
[396255548,1764891202087,170.76,1e-05,2]
[396255549,1764891262397,3438.0,0.000141,10]
[396255553,1764891448447,1892.67854655,0.0001222,2]
[396255554,1764891550090,-164.75396792,0.00012352,2]
[396255555,1764891550115,-48.50935388,0.00012361,2]
[396255556,1764891552820,-175.08944416,0.00012361,2]
[396255557,1764891556262,-242.95199612,0.00012361,2]
[396255558,1764891558371,-352.23587051,0.00012361,2]
[396255559,1764891561948,-257.0,0.00012361,2]
[396255560,1764891565327,-332.3854378,0.00012361,2]
[396255561,1764891569595,-300.0,0.00012361,2]
[396255562,1764891594363,-247.52106102,0.00012361,2]
[396255563,1764891596056,-197.41542575,0.00012361,2]
[396255564,1764891598414,-302.28969292,0.00012361,2]
[396255565,1764891602652,-327.04694093,0.00012361,2]
[396255566,1764891609316,-263.59441428,0.00012361,2]
[396255567,1764891618039,-180.98858161,0.00012361,2]
[396255568,1764891803696,-206.02409668,0.00012361,2]
[396255569,1764891807556,-230.97719495,0.00012361,2]
[396255570,1764891809754,-235.67676033,0.00012361,2]
[396255571,1764891812591,-301.75339797,0.00012361,2]
[396255572,1764891814119,-234.18069213,0.00012361,2]
[396255573,1764891816250,-300.01183225,0.00012361,2]
[396255574,1764891818436,-154.75051089,0.00012361,2]
[396255575,1764891834714,-258.32707987,0.00012361,2]
[396255576,1764891838699,-300.0,0.00012361,2]
[396255577,1764891840329,-178.50122537,0.00012361,2]
[396255578,1764891842575,-199.30508971,0.00012361,2]
[396255579,1764891864423,-245.74248661,0.00012361,2]
[396255580,1764891867608,-151.00865929,0.00012361,2]
[396255581,1764891868695,-545.40940357,0.00012361,2]
[396255582,1764891872752,-281.43535408,0.00012361,2]
[396255583,1764891874317,-290.97367503,0.00012361,2]
[396255584,1764891877038,-82.83961649,0.00012361,2]
[396255585,1764891877064,-156.25014962,0.00012361,2]
[396255586,1764891877085,-56.08549862,0.00012361,2]
[396255594,1764892116091,500.0,0.00012769,3]
[396255595,1764892116312,500.0,0.00012769,4]
[396255596,1764892116583,500.0,0.00012769,5]
[396255597,1764892117542,236.6584182,0.00013399,9]
[396255598,1764892118778,-194.91450138,0.00012361,2]
[396255599,1764892118802,-96.65759661,0.00012468,2]
[396255600,1764892209288,-252.0,0.00012468,2]
[396255601,1764892209311,-17.40257889,0.00012468,2]
[396255603,1764892231661,-39.06497113,0.00012468,2]
[396255604,1764892231670,-300.0,0.00012569,2]
[396255605,1764892231680,-833.37859768,0.0001257,2]
[396255644,1764892240392,-3e-08,0.00012569,2]
[396255645,1764892240404,-499.99999997,0.00012569,2]
[396255646,1764892240414,-499.48885558,0.00012569,2]
[396255647,1764892240423,-412.4111453,0.00012569,2]
[396255675,1764892245923,-87.5888547,0.00012569,2]
[396255676,1764892245934,-2836.17008563,0.0001257,2]
[396255724,1764892249102,1000.0,0.00019,120]
[396255844,1764892273514,500.0,0.00019,120]
[396255846,1764892328784,-467.93,0.00012319,2]
[396255847,1764892328806,-58.61352308,0.00012476,2]
[396255848,1764892332666,-341.34576541,0.00012476,2]
[396255849,1764892376677,1034.19,0.000211,99]
[396255850,1764892390038,-669.7842418,0.00012476,2]
[396255851,1764892406218,-181.75087636,0.00012476,2]
[396255852,1764892406243,-150.84555397,0.00012523,2]
[396255853,1764892406271,-199667.40356967,0.0001257,2]
[396255854,1764892417223,2789.89215551,0.0001222,2]
[396255855,1764892538710,-191.40036198,0.00012443,2]
[396255856,1764892540898,-258.91774045,0.00012443,2]
[396255857,1764892544443,-328.17555533,0.00012443,2]
[396255858,1764892545932,-296.22991002,0.00012443,2]
[396255859,1764892549007,-202.8023932,0.00012443,2]
[396255860,1764892550013,-396.94592762,0.00012443,2]
[396255861,1764892551509,-238.60572405,0.00012443,2]
[396255862,1764892553706,-412.69492243,0.00012443,2]
[396255863,1764892555328,-511.30343862,0.00012443,2]
[396255864,1764892556945,-395.88862555,0.00012443,2]
[396255865,1764892560302,-731.24725865,0.00012443,2]
[396255866,1764892563538,-261.65396971,0.00012443,2]
[396255867,1764892565154,-218.60633673,0.00012443,2]
[396255868,1764892567260,-112.94707838,0.00012443,2]
[396255869,1764892567283,-134.04672133,0.0001247,2]
[396255870,1764892569234,-305.23108715,0.0001247,2]
[396255871,1764892570758,-250.1735829,0.0001247,2]
[396255872,1764892573429,-308.973905,0.0001247,2]
[396255873,1764892575565,-354.55355527,0.0001247,2]
[396255874,1764892577713,-213.49828434,0.0001247,2]
[396255875,1764892579737,-164.53804103,0.0001247,2]
[396255876,1764892584635,-732.79246821,0.0001247,2]
[396255877,1764892584659,-531.6624339,0.0001247,2]
[396255878,1764892587456,-245.02324028,0.0001247,2]
[396255879,1764892590747,-254.72734048,0.0001247,2]
[396255880,1764892644420,-155.76528857,0.00012345,2]
[396255881,1764892644448,-164.7539679,0.00012467,2]
[396255882,1764892644472,-190.57275128,0.0001247,2]
[396255883,1764892646345,1499.0071118,0.00011661,2]
[396255884,1764892659023,-155.76528857,0.00012345,2]
[396255885,1764892659046,-134.89147257,0.00012469,2]
[396255886,1764892673863,449.79355689,0.00012956,7]
[396255887,1764892678520,1799.17422757,0.00012956,7]
[396255888,1764892680858,4048.14201204,0.00012956,7]
[396255889,1764892690933,500.0,0.00012669,3]
[396255890,1764892691180,500.0,0.00012669,4]
[396255891,1764892691451,500.0,0.00012899,5]
[396255892,1764892722907,322.67,0.0001222,2]
[396255893,1764892850969,911.54328887,0.00012956,7]
[396255894,1764892989926,-742.92779881,0.00012294,2]
[396255895,1764892992760,-180.15932349,0.00012294,2]
[396255896,1764892995423,-494.46208216,0.00012294,2]
[396255897,1764892999911,-175.56503363,0.00012294,2]
[396255898,1764893002575,-477.46276022,0.00012294,2]
[396255899,1764893004723,10000.0,0.0001222,2]
[396255900,1764893005248,-324.43496637,0.00012294,2]
[396255901,1764893007805,-246.90738198,0.00012294,2]
[396255902,1764893012349,-500.0,0.00012294,2]
[396255903,1764893014482,-306.77229957,0.00012294,2]
[396255904,1764893017833,-212.76194058,0.00012294,2]
[396255905,1764893017855,-7.87630194,0.00012469,2]
[396255906,1764893021877,-21.98619339,0.00012469,2]
[396255907,1764893021900,-159.22006572,0.00012469,2]
[396255908,1764893024406,-92.77993428,0.00012469,2]
[396255909,1764893024430,-167.13720144,0.0001247,2]
[396255912,1764893138800,-415.47993631,0.0001247,2]
[396255913,1764893141066,-166.76210516,0.0001247,2]
[396255914,1764893143087,-560.77318963,0.0001247,2]
[396255915,1764893146367,-348.07853279,0.0001247,2]
[396255916,1764893150754,-198.7429994,0.0001247,2]
[396255917,1764893152347,-187.75871626,0.0001247,2]
[396255926,1764893431976,-841.51035463,0.00012417,2]
[396255927,1764893431986,-252.0,0.00012417,2]
[396255928,1764893431995,-170.32566596,0.00012442,2]
[396255929,1764893432005,-300.0,0.00012466,2]
[396255930,1764893432014,-300.0,0.00012467,2]
[396255931,1764893432025,-300.0,0.00012467,2]
[396255932,1764893432035,-300.0,0.00012467,2]
[396255933,1764893432044,-1200.0,0.00012467,2]
[396255934,1764893432053,-317.0,0.00012468,2]
[396255935,1764893432062,-315.6101333,0.00012469,2]
[396255936,1764893432071,-328.53687411,0.00012469,2]
[396255957,1764893438197,-48199.57652972,0.00012468,2]
[396255958,1764893438209,-994.06474417,0.00012468,2]
[396255961,1764893440202,-498.04,0.00012468,2]
[396255962,1764893440667,-3e-08,0.00012468,2]
[396255963,1764893440679,-308.31872608,0.00012468,2]
[396255964,1764893440688,-171.46312589,0.00012469,2]
[396255965,1764893440698,-162.4847252,0.00012469,2]
[396255966,1764893440707,-500.0,0.00012469,2]
[396255967,1764893440716,-500.0,0.00012469,2]
[396255968,1764893440725,-500.0,0.00012469,2]
[396255969,1764893440735,-500.0,0.00012469,2]
[396255970,1764893440744,-500.0,0.00012469,2]
[396255971,1764893440753,-500.0,0.00012469,2]
[396255972,1764893440763,-500.0,0.00012469,2]
[396255973,1764893440772,-20826.99785952,0.0001247,2]
[396255996,1764893443170,-4645.66028822,0.0001247,2]
[396256410,1764893474692,499.0,0.0001222,2]
[396256411,1764893528728,-374.344,0.00012221,2]
[396256412,1764893528756,-252.77906223,0.00012345,2]
[396256413,1764893530775,-13.57922448,0.00012345,2]
[396256414,1764893530799,-278.56095493,0.00012464,2]
[396256415,1764893532820,-240.0,0.00012464,2]
[396256416,1764893548310,196.86,0.0001,2]
[396256417,1764893548880,196.86,0.0001,2]
[396256418,1764893553869,196.86,0.0001,2]
[396256419,1764893554811,196.86,0.0001,2]
[396256420,1764893555679,196.86,0.0001,2]
[396256421,1764893873095,196.0,0.0001222,2]
[396256422,1764894027077,-217.22226743,0.00012463,2]
[396256423,1764894117093,-339.66102887,0.000124,2]
[396256424,1764894118618,-153.29483988,0.000124,2]
[396256425,1764894118640,-67.91450521,0.00012463,2]
[396256426,1764894118666,-252.0,0.00012463,2]
[396256427,1764894118690,-186.54881177,0.00012463,2]
[396256428,1764894118712,-566.68804927,0.00012464,2]
[396256429,1764894118733,-500.0,0.00012468,2]
[396256430,1764894118791,-500.0,0.00012468,2]
[396256431,1764894118849,-300.0,0.00012468,2]
[396256432,1764894118905,-299.476,0.00012468,2]
[396256433,1764894118949,-50000.0,0.00012469,2]
[396256434,1764894118990,-500.0,0.00012469,2]
[396256435,1764894119034,-500.0,0.00012469,2]
[396256436,1764894119102,-500.0,0.00012469,2]
[396256437,1764894119153,-500.0,0.00012469,2]
[396256438,1764894119201,-500.0,0.00012469,2]
[396256439,1764894119242,-500.0,0.00012469,2]
[396256440,1764894119282,-500.0,0.00012469,2]
[396256441,1764894119320,-422.81584004,0.00012469,2]
[396256442,1764894119357,-500.0,0.00012469,2]
[396256443,1764894119395,-550.0,0.00012469,2]
[396256444,1764894119430,-500.0,0.00012469,2]
[396256445,1764894119496,-462.4983028,0.00012469,2]
[396256446,1764894119546,-500.0,0.00012469,2]
[396256447,1764894119589,-509.98344362,0.0001247,2]
[396256448,1764894119627,-917.97019851,0.0001247,2]
[396256449,1764894119665,-1631.94701958,0.0001247,2]
[396256450,1764894119702,-2549.91721809,0.0001247,2]
[396256451,1764894119740,-3671.88079405,0.0001247,2]
[396256452,1764894119777,-412.23288444,0.0001247,2]
[396256453,1764894119811,-742.019192,0.0001247,2]
[396256454,1764894119850,-4992.83990971,0.0001247,2]
[396256455,1764894119889,-225309.97299103,0.0001247,2]
[396256456,1764894208476,411.98218614,0.0001222,2]
[396256457,1764894216921,-4588.01781386,0.0001222,2]
[396256458,1764894216945,-300.0,0.00012368,2]
[396256459,1764894216969,-287.65470677,0.00012369,2]
[396256460,1764894216994,-500.0,0.00012369,2]
[396256461,1764894217018,-500.0,0.00012369,2]
[396256462,1764894217042,-500.0,0.00012369,2]
[396256463,1764894217064,-500.0,0.00012369,2]
[396256464,1764894217086,-500.0,0.00012369,2]
[396256465,1764894217110,-500.0,0.00012369,2]
[396256466,1764894217134,-430.97108803,0.00012369,2]
[396256467,1764894217162,-291393.35639134,0.0001237,2]
[396256468,1764894223531,-300000.0,0.0001237,2]
[396256469,1764894234328,-2565.36776577,0.00012124,2]
[396256470,1764894234352,-5000.0,0.00012246,2]
[396256471,1764894234381,-292434.63223423,0.0001237,2]
[396256472,1764894264741,-5000.0,0.00012246,2]
[396256473,1764894264769,-6172.01137443,0.0001237,2]
[396256474,1764894264791,-151.0,0.000125,2]
[396256482,1764894275550,-300.0,0.00012563,2]
[396256483,1764894275573,-5264.5949412,0.00012564,2]
[396256484,1764894275595,-500.0,0.00012569,2]
[396256485,1764894275616,-151.0,0.000127,2]
[396256486,1764894275638,-1317.82608499,0.00012776,2]
[396256491,1764894313826,2487.15318209,0.00012463,2]
[396256492,1764894316035,278656.41441729,0.0001237,2]
[396256495,1764894347726,151.0,0.000117,2]
[396256496,1764894348375,151.0,0.00011,2]
[396256497,1764894391146,-300.0,0.00012369,2]
[396256498,1764894391173,-104.05667186,0.0001237,2]
[396256499,1764894411968,-276.03248579,0.00012369,2]
[396256500,1764894414031,-13.8675628,0.00012369,2]
[396256501,1764894414059,-193.03652707,0.00012369,2]
[396256502,1764894416579,-306.96347293,0.00012369,2]
[396256503,1764894416601,-500.0,0.00012369,2]
[396256504,1764894416624,-500.0,0.00012369,2]
[396256505,1764894416648,-500.0,0.00012369,2]
[396256506,1764894416684,-477.16395341,0.00012369,2]
[396256507,1764894416714,-197715.87257366,0.0001237,2]
[396256508,1764894417210,-156.28406325,0.0001237,2]
[396256509,1764894419299,-505.0,0.0001237,2]
[396256510,1764894420817,-449.82144423,0.0001237,2]
[396256511,1764894423496,-152.7045993,0.00012369,2]
[396256512,1764894426250,-123.2954007,0.00012369,2]
[396256513,1764894426280,-39.30232655,0.0001237,2]
[396256514,1764894430527,-187.85235685,0.0001237,2]
[396256515,1764894433285,-408.46075825,0.0001237,2]
[396256520,1764894574070,-299.16563133,0.00012123,2]
[396256577,1764894632113,-3028.88153078,0.00012123,2]
[396256589,1764894634055,500.0,0.00012469,3]
[396256590,1764894634306,500.0,0.00012469,4]
[396256591,1764894634543,500.0,0.00012469,5]
[396256592,1764894634782,500.0,0.00012469,6]
[396256593,1764894635037,500.0,0.00012469,7]
[396256594,1764894635288,500.0,0.00012469,8]
[396256610,1764894635524,537.6181852,0.00012469,9]
[396256628,1764894638373,-1671.95283789,0.00012123,2]
[396256629,1764894638383,-249.0,0.00012123,2]
[396256630,1764894638392,-208.73795339,0.00012184,2]
[396256631,1764894638402,-2268.58412825,0.00012245,2]
[396256632,1764894638412,-300.0,0.00012368,2]
[396256633,1764894638421,-1200.0,0.00012368,2]
[396256634,1764894638431,-300.0,0.00012368,2]
[396256635,1764894638440,-395.46441428,0.00012368,2]
[396256636,1764894638450,-405.19050893,0.00012368,2]
[396256637,1764894638459,-500.0,0.00012368,2]
[396256638,1764894638468,-500.0,0.00012368,2]
[396256639,1764894638478,-261.0251193,0.00012368,2]
[396256640,1764894638487,-500.0,0.00012368,2]
[396256641,1764894638497,-500.0,0.00012368,2]
[396256642,1764894638507,-500.0,0.00012368,2]
[396256643,1764894638516,-500.0,0.00012368,2]
[396256644,1764894638525,-447.738781,0.00012368,2]
[396256645,1764894638535,-500.0,0.00012368,2]
[396256646,1764894638545,-500.0,0.00012368,2]
[396256647,1764894638555,-500.0,0.00012368,2]
[396256648,1764894638563,-500.0,0.00012368,2]
[396256649,1764894638572,-500.0,0.00012368,2]
[396256650,1764894638582,-500.0,0.00012368,2]
[396256651,1764894638592,-500.0,0.00012368,2]
[396256652,1764894638602,-500.0,0.00012368,2]
[396256653,1764894638617,-500.0,0.00012368,2]
[396256654,1764894638627,-500.0,0.00012368,2]
[396256655,1764894638637,-500.0,0.00012368,2]
[396256656,1764894638648,-500.0,0.00012368,2]
[396256657,1764894638658,-500.0,0.00012368,2]
[396256658,1764894638669,-500.0,0.00012368,2]
[396256659,1764894638679,-500.0,0.00012368,2]
[396256660,1764894638689,-500.0,0.00012368,2]
[396256661,1764894638699,-500.0,0.00012368,2]
[396256662,1764894638709,-500.0,0.00012368,2]
[396256663,1764894638718,-500.0,0.00012368,2]
[396256664,1764894638728,-500.0,0.00012368,2]
[396256665,1764894638737,-500.0,0.00012368,2]
[396256666,1764894638746,-500.0,0.00012368,2]
[396256667,1764894638756,-500.0,0.00012368,2]
[396256668,1764894639066,-500.0,0.00012368,2]
[396256669,1764894639076,-500.0,0.00012368,2]
[396256670,1764894639086,-500.0,0.00012368,2]
[396256671,1764894639097,-500.0,0.00012368,2]
[396256672,1764894639107,-500.0,0.00012368,2]
[396256673,1764894639117,-500.0,0.00012368,2]
[396256674,1764894639127,-500.0,0.00012368,2]
[396256675,1764894639137,-500.0,0.00012368,2]
[396256676,1764894639147,-500.0,0.00012368,2]
[396256677,1764894639158,-500.0,0.00012368,2]
[396256678,1764894639167,-500.0,0.00012368,2]
[396256679,1764894639177,-500.0,0.00012368,2]
[396256680,1764894639187,-1200.0,0.00012369,2]
[396256681,1764894639197,-500.0,0.00012369,2]
[396256682,1764894639207,-411776.93538806,0.0001237,2]
[396256683,1764894639217,-151.0,0.000124,2]
[396256684,1764894639228,-500.0,0.00012469,2]
[396256685,1764894639237,-500.0,0.00012643,2]
[396256686,1764894639247,-151.0,0.00012776,2]
[396256687,1764894639259,-151.0,0.00012776,2]
[396256688,1764894639270,-151.0,0.00012776,2]
[396256689,1764894639279,-151.0,0.00012776,2]
[396256690,1764894639289,-151.0,0.00012776,2]
[396256691,1764894639300,-151.0,0.00012776,2]
[396256692,1764894639309,-151.0,0.00012776,2]
[396256693,1764894639319,-151.0,0.00012776,2]
[396256694,1764894639328,-280.76412026,0.00012776,2]
[396256695,1764894639339,-151.0,0.000129,2]
[396256696,1764894639348,-151.0,0.000129,2]
[396256697,1764894639357,-3897.05739869,0.000129,2]
[396256698,1764894639366,-500.0,0.00012917,2]
[396256699,1764894639375,-151.0,0.00013,2]
[396256700,1764894639384,-151.0,0.00013,2]
[396256701,1764894639394,-151.0,0.000131,2]
[396256702,1764894639403,-151.0,0.000131,2]
[396256703,1764894639412,-500.0,0.000131,2]
[396256704,1764894639421,-614.97,0.000131,2]
[396256705,1764894639430,-151.0,0.000132,2]
[396256706,1764894639439,-500.0,0.00013273,2]
[396256707,1764894639448,-500.0,0.00013273,2]
[396256708,1764894639457,-500.0,0.00013273,2]
[396256709,1764894639466,-500.0,0.00013273,2]
[396256710,1764894639475,-500.0,0.00013273,2]
[396256711,1764894639484,-500.2392283,0.00013273,2]
[396256712,1764894639493,-500.3601762,0.00013273,2]
[396256713,1764894639502,-500.0,0.00013273,2]
[396256714,1764894639511,-500.0,0.00013273,2]
[396256715,1764894639521,-500.0,0.00013273,2]
[396256716,1764894639532,-500.0,0.00013273,2]
[396256717,1764894639545,-495.04708343,0.00013273,2]
[396256718,1764894639554,-500.0,0.00013273,2]
[396256719,1764894639563,-500.0,0.00013273,2]
[396256720,1764894639572,-500.0,0.00013273,2]
[396256721,1764894639582,-500.0,0.00013273,2]
[396256722,1764894639592,-500.0,0.00013273,2]
[396256723,1764894639606,-500.0,0.00013273,2]
[396256724,1764894639621,-500.0,0.00013273,2]
[396256725,1764894639631,-500.0,0.00013273,2]
[396256726,1764894639641,-500.79505321,0.00013273,2]
[396256727,1764894639651,-170.3130577,0.00013273,2]
[396256728,1764894639661,-167.06,0.00013273,2]
[396256729,1764894639671,-151.0,0.000133,2]
[396256730,1764894639680,-151.0,0.000134,2]
[396256731,1764894639690,-151.0,0.00013492,2]
[396256732,1764894639700,-501.13199368,0.00013492,2]
[396256733,1764894639710,-250.0,0.00013492,2]
[396256734,1764894639719,-500.0,0.00013492,2]
[396256735,1764894639729,-500.0,0.00013492,2]
[396256736,1764894639739,-250.0,0.00013492,2]
[396256737,1764894639749,-500.0,0.00013492,2]
[396256738,1764894639759,-4835.02578598,0.00013492,2]
[396256739,1764894639769,-337.34225,0.00013492,2]
[396256740,1764894639779,-500.0,0.00013492,2]
[396256741,1764894639790,-500.0,0.00013492,2]
[396256743,1764894639800,-500.0,0.00013492,2]
[396256745,1764894639809,-500.0,0.00013492,2]
[396256746,1764894639819,-500.0,0.00013492,2]
[396256747,1764894639828,-195.27686797,0.00013492,2]
[396256748,1764894639837,-500.0,0.00013492,2]
[396256749,1764894639846,-500.0,0.00013492,2]